bitfinex-derivatives/quotes_ETHF0:USTF0_20240830
["timestamp","ask_amount","ask_price","bid_price","bid_amount"]
[1725051530683,0.3721,2518.6,2517.9,3.43]
[1725051530895,0.39712,2518.3,2518.2,0.39712]
[1725051531090,0.39709,2518.5,2518.3,0.39711]
[1725051531291,0.39708,2518.5,2518.0,1.37228]
[1725051531492,1.72938,2518.6,2518.5,0.39708]
[1725051531493,1.13376,2518.6,2518.5,0.39708]
[1725051531694,0.7367,2518.6,2518.5,0.39708]
[1725051532085,1.13376,2518.6,2518.5,0.39708]
[1725051532291,0.7367,2518.6,2518.5,0.39708]
[1725051532493,1.13376,2518.6,2518.5,0.39708]
[1725051533595,0.3721,2518.6,2518.5,0.39708]
[1725051533784,0.39702,2518.9,2518.8,0.39702]
[1725051534092,0.35775983,2519.0,2518.9,0.39701]
[1725051534284,0.00595983,2519.0,2518.9,0.39701]
[1725051534684,0.99255,2518.9,2518.4,4.158]
[1725051534991,0.39705,2518.7,2518.6,0.39705]
[1725051535398,3.2078,2518.8,2518.7,0.39705]
[1725051535600,3.2078,2518.8,2518.4,7.588]
[1725051535601,0.39706,2518.6,2518.4,7.588]
[1725051535787,0.39706,2518.6,2518.5,0.39706]
[1725051535982,1.34443,2518.7,2518.4,4.55508]
[1725051536202,0.39708,2518.5,2518.4,4.55509]
[1725051536497,0.39707,2518.6,2518.5,0.39707]
[1725051536884,0.39708,2518.5,2518.4,4.55509]
[1725051537696,0.39707,2518.6,2518.4,4.55509]
[1725051537896,0.39708,2518.5,2518.4,4.55509]
[1725051539000,0.39708,2518.5,2518.2,7.0139]
[1725051539187,0.39709,2518.4,2518.3,0.39711]
[1725051540801,0.39711,2518.3,2518.2,0.3761]
[1725051541000,0.99271,2518.5,2518.1,0.39713]
[1725051541001,0.39713,2518.2,2518.1,0.39713]
[1725051541399,0.39713,2518.2,2518.1,4.36833]
[1725051542501,0.39712,2518.3,2518.2,0.39711]
[1725051543096,3.60488,2518.5,2518.4,0.39709]
[1725051543299,0.39707,2518.6,2518.5,0.39706]
[1725051544496,0.39711,2518.4,2518.3,0.3971]
[1725051544694,0.39711,2518.4,2518.0,4.158]
[1725051544897,0.39712,2518.3,2518.2,0.39712]
[1725051545600,0.3518,2518.7,2518.3,0.99278]
[1725051545907,0.39707,2518.6,2518.5,0.39707]
[1725051549294,4.20627983,2519.0,2518.6,0.99265]
[1725051549295,3.21375983,2519.0,2518.6,0.99265]
[1725051549497,3.61076983,2519.0,2518.9,0.39701]
[1725051551304,0.00595983,2519.0,2518.9,7.79661]
[1725051551500,0.00595983,2519.0,2518.9,3.82701]
[1725051551695,0.00595983,2519.0,2518.9,0.39701]
[1725051551696,0.40295983,2519.0,2518.9,0.39701]
[1725051552101,0.00595983,2519.0,2518.9,0.39701]
[1725051552512,0.39701,2518.9,2518.8,0.3559]
[1725051552697,0.00595983,2519.0,2518.6,0.39705]
[1725051552698,0.39704,2518.8,2518.6,0.39705]
[1725051552902,0.39702,2518.9,2518.7,0.39705]
[1725051553703,0.00595983,2519.0,2518.7,7.4004]
[1725051554114,0.00595983,2519.0,2518.9,0.39701]
[1725051554411,0.00595983,2519.0,2518.9,4.36661]
[1725051554604,0.00595983,2519.0,2518.9,0.39701]
[1725051554803,0.00595983,2519.0,2518.9,4.36661]
[1725051555399,0.00595983,2519.0,2518.9,3.9696]
[1725051555602,0.00595983,2519.0,2518.9,0.39701]
[1725051555998,0.40296983,2519.0,2518.8,0.75182]
[1725051556200,0.00595983,2519.0,2518.7,3.43]
[1725051556405,0.39703,2518.8,2518.6,0.39706]
[1725051558017,0.76362,2518.9,2518.7,0.39703]
[1725051558311,0.39703,2518.8,2518.7,0.39703]
[1725051558513,0.00595983,2519.0,2518.7,0.39703]
[1725051558813,0.39704,2518.8,2518.6,3.60485]
[1725051559909,0.39705,2518.7,2518.6,0.39705]
[1725051560111,0.39705,2518.7,2518.5,0.39708]
[1725051560112,0.3617,2518.7,2518.5,0.39708]
[1725051560414,3.2078,2518.9,2518.4,7.4004]
[1725051560709,0.39704,2518.8,2518.6,0.39705]
[1725051560912,0.39704,2518.8,2518.7,0.39705]
[1725051561124,0.36175983,2519.0,2518.7,3.43]
[1725051561307,0.00595983,2519.0,2518.9,0.39701]
[1725051563115,0.00595983,2519.0,2518.9,4.36661]
[1725051563415,0.00595983,2519.0,2518.9,0.39701]
[1725051566116,0.00595983,2519.0,2518.9,4.36661]
[1725051566803,0.00595983,2519.0,2518.9,0.39701]
[1725051567215,0.40295983,2519.0,2518.9,0.39701]
[1725051568315,0.00595983,2519.0,2518.9,0.39701]
[1725051569605,0.40295983,2519.0,2518.9,0.39701]
[1725051569806,0.00595983,2519.0,2518.9,0.39701]
[1725051570213,0.40295983,2519.0,2518.9,0.39701]
[1725051570409,0.39703,2518.9,2518.6,3.43]
[1725051570609,0.74903,2518.9,2518.8,0.39702]
[1725051571415,0.39703,2518.9,2518.8,4.36742]
[1725051571613,0.39703,2518.9,2518.8,0.39702]
[1725051571822,0.74903,2518.9,2518.8,0.39702]
[1725051572005,0.39705,2518.8,2518.7,0.39703]
[1725051574424,0.39705,2518.7,2518.6,0.39705]
[1725051574721,0.39705,2518.7,2518.6,0.79286148]
[1725051575021,0.00595983,2519.0,2518.6,13.79621148]
[1725051575215,0.40295983,2519.0,2518.8,0.39702]
[1725051575417,0.40295983,2519.0,2518.9,0.39701]
[1725051575615,0.40295983,2519.0,2518.8,0.39702]
[1725051575916,0.00595983,2519.0,2518.9,0.39701]
[1725051578322,0.40296983,2519.0,2518.6,3.43]
[1725051578515,0.40296983,2519.0,2518.8,0.39702]
[1725051579730,0.00595983,2519.0,2518.9,0.39701]
[1725051580824,0.40295983,2519.0,2518.9,0.39701]
[1725051581232,0.00595983,2519.0,2518.9,0.39701]
[1725051581527,0.40295983,2519.0,2518.9,0.39701]
[1725051581723,0.00595983,2519.0,2518.9,0.39701]
[1725051583525,0.00595983,2519.0,2518.9,0.79232922]
[1725051583722,0.00595983,2519.0,2518.9,1.78486922]
[1725051583923,0.00595983,2519.0,2518.9,1.38955]
[1725051584119,0.00595983,2519.0,2518.9,1.78481764]
[1725051584939,0.00595983,2519.0,2518.9,0.79227764]
[1725051585136,0.00595983,2519.0,2518.9,0.39701]
[1725051585946,0.00595983,2519.0,2518.9,0.79221715]
[1725051586543,0.00595983,2519.0,2518.9,0.39701]
[1725051586741,0.00595983,2519.0,2518.9,4.76181044]
[1725051586941,0.00595983,2519.0,2518.9,4.76181064]
[1725051587245,0.00595983,2519.0,2518.9,4.76182199]
[1725051589149,0.00595983,2519.0,2518.9,6.74690199]
[1725051589352,0.00595983,2519.0,2518.9,10.57689281]
[1725051590155,0.00595983,2519.0,2518.9,16.57689281]
[1725051590747,0.00595983,2519.0,2518.9,10.57689281]
[1725051592652,0.00595983,2519.0,2518.9,6.37655281]
[1725051592851,0.40295983,2519.0,2518.9,5.38401281]
[1725051593050,0.40295983,2519.0,2518.9,1.41441281]
[1725051593255,0.00595983,2519.0,2518.9,6.37663582]
[1725051595062,0.00595983,2519.0,2518.9,7.36917582]
[1725051595362,0.00595983,2519.0,2518.9,12.56206582]
[1725051595659,3.2078,2519.3,2519.2,1.38939]
[1725051595853,3.2078,2519.3,2519.2,1.78460199]
[1725051597255,0.00595983,2519.5,2519.4,0.39693]
[1725051597557,0.40287983,2519.5,2519.4,0.79196468]
[1725051599257,0.40287983,2519.5,2519.4,0.39693]
[1725051601562,0.40287983,2519.5,2519.4,0.79193634]
[1725051601760,0.40287983,2519.5,2519.4,0.39693]
[1725051602353,0.00595983,2519.5,2519.4,0.39693]
[1725051603262,0.3625,2519.9,2519.8,1.38906]
[1725051603466,3.2078,2520.5,2520.4,0.39678]
[1725051603654,3.2078,2520.5,2520.4,4.81873]
[1725051603956,0.39667,2521.1,2521.0,0.39668]
[1725051604158,3.9449,2521.3,2521.2,0.39665]
[1725051604352,0.7371,2521.3,2521.2,0.39665]
[1725051604556,0.7371,2521.3,2520.8,0.00595983]
[1725051604557,19.42235669,2521.3,2520.8,0.00595983]
[1725051604757,0.99164,2521.2,2520.8,0.00595983]
[1725051605062,0.3967,2520.9,2520.8,0.00595983]
[1725051605460,4.7322,2520.9,2520.8,0.00595983]
[1725051607562,13.7655,2520.9,2519.8,0.39687]
[1725051607758,13.7655,2520.9,2519.9,0.39686]
[1725051607759,0.39684,2520.1,2519.9,0.39686]
[1725051607953,0.3564,2520.0,2519.7,6.6378]
[1725051608260,0.3564,2520.0,2519.6,0.3839]
[1725051608463,0.3564,2520.0,2519.6,0.3969]
[1725051608464,0.39688,2519.8,2519.6,0.3969]
[1725051608762,0.39688,2519.8,2519.6,0.39689]
[1725051609063,0.3764,2519.9,2519.5,0.00595983]
[1725051609252,0.39689,2519.7,2519.5,0.40286983]
[1725051609454,0.3969,2519.6,2519.5,0.00595983]
[1725051610558,1.38917,2519.6,2519.5,0.00595983]
[1725051610753,0.3969,2519.6,2519.5,0.00595983]
[1725051611466,0.39689,2519.7,2519.5,0.40286983]
[1725051612563,0.3969,2519.6,2519.5,0.00595983]
[1725051613063,4.3657,2519.6,2519.5,0.00595983]
[1725051613763,8.56577,2519.6,2519.5,0.00595983]
[1725051614156,0.397,2519.0,2518.8,0.74892853]
[1725051614475,0.9923,2519.5,2518.9,0.39701]
[1725051614476,0.39699,2519.1,2518.9,0.39701]
[1725051614759,0.397,2519.0,2518.9,0.39701]
[1725051614962,0.39699,2519.1,2518.9,0.39701]
[1725051615153,0.39699,2519.1,2519.0,0.397]
[1725051615354,0.39699,2519.1,2518.8,0.3538]
[1725051615355,0.39699,2519.1,2518.9,0.397]
[1725051616161,0.39699,2519.1,2519.0,0.397]
[1725051616463,0.3687,2519.2,2519.0,0.397]
[1725051616464,0.76567,2519.2,2519.0,0.397]
[1725051616667,0.76567,2519.2,2518.8,0.3538]
[1725051616966,0.76567,2519.2,2519.0,0.39699]
[1725051617166,0.78014,2519.4,2519.3,0.39695]
[1725051617361,0.78014,2519.4,2519.2,0.39695]
[1725051618155,0.39695,2519.3,2519.2,0.39695]
[1725051618870,0.39697,2519.2,2519.1,0.39697]
[1725051619169,0.3832,2519.4,2519.1,0.39697]
[1725051619359,0.3832,2519.4,2519.0,3.82699]
[1725051619668,0.39701,2518.9,2518.8,0.39702]
[1725051619870,0.39703,2518.8,2518.7,3.83299983]
[1725051620165,0.39702,2518.9,2518.7,0.40299983]
[1725051620367,0.39702,2518.9,2518.8,0.39703]
[1725051620761,0.39702,2518.9,2518.7,0.40298983]
[1725051620962,1.74497,2519.1,2518.7,0.40298983]
[1725051621470,0.39703,2518.8,2518.7,0.40298983]
[1725051621861,0.39703,2518.8,2518.7,0.00595983]
[1725051621862,1.38961,2518.8,2518.7,0.00595983]
[1725051622868,0.39703,2518.8,2518.7,0.00595983]
[1725051623066,0.39702,2518.9,2518.8,0.39703]
[1725051623269,0.3832,2519.4,2519.0,0.397]
[1725051623462,0.39691,2519.6,2519.5,0.39691]
[1725051623662,0.365,2519.8,2519.6,0.39689]
[1725051623867,3.60467,2519.9,2519.7,0.39688]
[1725051624065,3.2078,2519.9,2519.7,0.39688]
[1725051624259,7.1766,2519.9,2519.4,0.39693]
[1725051624465,0.3969,2519.7,2519.5,0.39691]
[1725051624667,0.39691,2519.6,2519.3,3.43]
[1725051625164,4.19997,2519.9,2519.3,3.43]
[1725051625165,0.3969,2519.7,2519.5,0.39691]
[1725051625863,0.3969,2519.7,2519.3,3.43]
[1725051626064,0.3969,2519.7,2519.6,0.3969]
[1725051626262,0.3969,2519.7,2519.3,3.43]
[1725051626576,0.3969,2519.7,2519.6,0.3969]
[1725051627063,0.3969,2519.7,2519.5,0.39691]
[1725051627258,0.3969,2519.6,2519.5,0.39691]
[1725051627672,0.3969,2519.7,2519.5,0.39691]
[1725051627973,0.3969,2519.7,2519.6,0.3969]
[1725051628966,3.2078,2519.9,2519.3,3.43]
[1725051629270,3.2078,2520.8,2520.6,0.39674]
[1725051629469,0.39672,2520.8,2520.7,0.39673]
[1725051629674,0.39673,2520.7,2520.6,0.39674]
[1725051629867,0.39673,2520.8,2520.6,0.39674]
[1725051630062,0.39673,2520.8,2520.3,3.43]
[1725051630063,0.99183,2520.7,2520.4,0.39677]
[1725051630263,0.39679,2520.4,2520.2,3.2078]
[1725051630467,0.39679,2520.3,2520.2,3.2078]
[1725051630671,0.39679,2520.4,2520.2,3.6046]
[1725051630869,0.39682,2520.1,2520.0,4.16395983]
[1725051631169,1.16851,2520.3,2520.1,0.39681]
[1725051631370,0.39681,2520.2,2520.1,0.39681]
[1725051632168,0.39682,2520.2,2520.1,0.39682]
[1725051632568,0.39682,2520.2,2520.0,0.40278983]
[1725051632863,0.39682,2520.2,2520.1,0.39682]
[1725051633282,4.58682983,2520.6,2520.5,0.39676]
[1725051633283,0.78390983,2520.6,2520.5,0.39676]
[1725051633478,0.00595983,2520.6,2520.5,0.39676]
[1725051634073,0.40270983,2520.6,2520.5,0.39676]
[1725051634274,0.40270983,2520.6,2520.1,4.325]
[1725051634275,0.00595983,2520.6,2520.1,11.1544]
[1725051634580,0.99784983,2520.6,2520.2,0.3968]
[1725051634777,0.39679,2520.3,2520.2,0.3968]
[1725051634979,0.39677,2520.5,2520.1,11.1544]
[1725051635183,0.39677,2520.5,2520.4,0.39678]
[1725051635373,0.00595983,2520.6,2520.1,11.1544]
[1725051635678,0.00595983,2520.6,2520.4,0.39678]
[1725051635679,0.39677,2520.5,2520.4,0.39678]
[1725051637268,0.3968,2520.3,2520.2,0.3968]
[1725051637478,0.99785983,2520.6,2520.1,7.3658]
[1725051637680,0.39679,2520.4,2520.3,0.39679]
[1725051638872,0.3968,2520.3,2520.2,0.3968]
[1725051639381,0.39679,2520.4,2520.3,0.39679]
[1725051640484,3.968,2520.4,2520.1,3.2078]
[1725051640674,0.39681,2520.2,2520.1,3.60462]
[1725051640871,0.39681,2520.2,2520.1,3.2078]
[1725051641185,0.39681,2520.2,2520.0,0.00595983]
[1725051641186,1.38889,2520.1,2520.0,0.00595983]
[1725051641382,6.34896,2520.1,2520.0,0.00595983]
[1725051641774,0.39692,2519.5,2519.4,0.39693]
[1725051641974,0.99219,2519.8,2519.1,3.8141]
[1725051642182,3.2078,2519.9,2519.8,0.39687]
[1725051642775,0.39688,2519.8,2519.7,0.39688]
[1725051642983,0.3969,2519.7,2519.6,0.39689]
[1725051643775,0.3969,2519.6,2519.5,0.00595983]
[1725051644374,1.1362,2519.6,2519.5,0.40287983]
[1725051644580,0.3969,2519.7,2519.6,0.3969]
[1725051645779,4.19995,2519.9,2519.5,0.40286983]
[1725051645780,0.3969,2519.6,2519.5,0.40286983]
[1725051645975,0.3969,2519.7,2519.6,0.3969]
[1725051646781,0.3969,2519.6,2519.5,0.40286983]
[1725051648685,0.3969,2519.6,2519.5,0.00595983]
[1725051648881,1.38917,2519.6,2519.5,0.00595983]
[1725051649082,2.11627,2519.6,2519.5,0.00595983]
[1725051652192,6.08507,2519.6,2519.5,0.00595983]
[1725051652389,7.07734,2519.6,2519.5,0.00595983]
[1725051652589,15.22472821,2519.6,2518.7,1.04248243]
[1725051652790,0.39702,2518.9,2518.8,0.39701]
[1725051652986,0.39703,2518.8,2518.7,1.43952243]
[1725051654092,1.38961,2518.8,2518.7,1.04248243]
[1725051655890,1.38961,2518.8,2518.6,3.60486]
[1725051655891,0.39705,2518.7,2518.6,3.60486]
[1725051656800,0.39705,2518.7,2518.6,3.2078]
[1725051656997,4.36745,2518.7,2518.6,3.2078]
[1725051657294,0.39705,2518.7,2518.6,3.2078]
[1725051657497,0.39705,2518.7,2518.6,3.60486]
[1725051657498,5.36007,2518.7,2518.6,3.60486]
[1725051657691,6.35269,2518.7,2518.6,3.2078]
[1725051657890,1.38972,2518.6,2518.5,0.00595983]
[1725051658395,1.38972,2518.6,2518.5,0.40303983]
[1725051658596,1.38972,2518.6,2518.5,0.00595983]
[1725051658793,1.38972,2518.6,2518.5,0.40303983]
[1725051659292,0.39706,2518.6,2518.5,0.40303983]
[1725051660290,0.39706,2518.6,2518.5,0.00595983]
[1725051660491,0.39706,2518.6,2518.5,0.40303983]
[1725051662590,0.76746,2518.6,2518.5,0.40303983]
[1725051662997,0.39704,2518.8,2518.7,0.39703]
[1725051663205,0.00595983,2519.0,2518.9,0.39701]
[1725051663393,0.00595983,2519.0,2518.9,1.38955]
[1725051663704,0.00595983,2519.0,2518.9,15.78169]
[1725051671906,0.00595983,2519.0,2518.9,16.14429]
[1725051672409,0.76728,2519.8,2519.7,0.39689]
[1725051672713,0.3969,2519.7,2519.6,0.39689]
[1725051673213,0.39691,2519.6,2519.5,0.39691]
[1725051673606,0.39691,2519.6,2519.3,6.6378]
[1725051673607,0.3969,2519.7,2519.6,0.39689]
[1725051674002,4.3657,2519.7,2519.6,0.39689]
[1725051676009,0.39693,2519.4,2519.3,3.2078]
[1725051677009,0.39693,2519.4,2519.3,3.60475]
[1725051677209,0.39693,2519.4,2519.3,0.39695]
[1725051678507,0.39697,2519.3,2519.2,0.39695]
[1725051678717,1.50727,2519.3,2519.2,0.39695]
[1725051679409,1.1103,2519.3,2519.2,0.39695]
[1725051680311,1.1103,2519.3,2519.2,1.38937]
[1725051680511,0.372,2519.3,2519.2,1.38937]
[1725051680714,0.39695,2519.4,2519.3,0.39695]
[1725051681109,0.40283983,2519.8,2519.7,0.39689]
[1725051681304,0.40283983,2519.8,2519.7,1.38912]
[1725051681305,0.00595983,2519.8,2519.7,1.38912]
[1725051682416,0.3969,2519.7,2519.6,0.39689]
[1725051682716,0.40283983,2519.8,2519.7,0.39689]
[1725051683314,0.40283983,2519.8,2519.3,7.63018]
[1725051683315,0.3969,2519.7,2519.6,0.39689]
[1725051684119,0.40283983,2519.8,2519.7,0.39689]
[1725051685002,4.37163983,2519.8,2519.7,0.39689]
[1725051685418,0.40283983,2519.8,2519.7,0.39689]
[1725051686922,4.37163983,2519.8,2519.7,0.39689]
[1725051688216,0.40283983,2519.8,2519.7,0.39689]
[1725051689122,0.00595983,2519.8,2519.7,0.39689]
[1725051690020,0.40282983,2519.8,2519.7,0.39689]
[1725051690223,0.00595983,2519.8,2519.7,0.39689]
[1725051690513,0.00595983,2519.8,2519.7,1.38912]
[1725051691613,0.40282983,2519.8,2519.7,0.39689]
[1725051692613,0.39691,2519.7,2519.6,0.39689]
[1725051693015,4.36571,2519.7,2519.6,0.39689]
[1725051693336,0.40283983,2519.8,2519.7,0.39689]
[1725051695139,0.39691,2519.7,2519.6,0.39689]
[1725051698629,1.38914,2519.7,2519.6,0.39689]
[1725051698826,5.35794,2519.7,2519.6,0.39689]
[1725051700329,4.36571,2519.7,2519.6,0.39689]
[1725051701332,0.39691,2519.7,2519.6,0.39689]
[1725051701927,5.35794,2519.7,2519.6,0.39689]
[1725051702129,0.39693,2519.5,2519.4,0.39692]
[1725051702625,0.75913,2519.5,2519.4,0.39692]
[1725051703522,0.3622,2519.5,2519.4,0.39692]
[1725051703928,0.99817983,2519.8,2519.4,0.39692]
[1725051703929,0.00595983,2519.8,2519.4,0.99234]
[1725051704233,0.00595983,2519.8,2519.7,0.39689]
[1725051704434,0.40284983,2519.8,2519.7,0.39689]
[1725051704733,4.37164983,2519.8,2519.7,0.39689]
[1725051706735,0.39691,2519.6,2519.5,0.3969]
[1725051707430,0.3969,2519.7,2519.6,0.39689]
[1725051707631,4.3657,2519.7,2519.6,0.39689]
[1725051709239,4.3657,2519.7,2519.6,0.79121094]
[1725051709438,0.00595983,2519.8,2519.7,0.39689]
[1725051709643,9.83e-06,2519.8,2519.7,15.98728457]
[1725051709838,9.83e-06,2519.8,2519.7,28.11290146]
[1725051710043,3.2078,2521.0,2519.7,26.05952254]
[1725051710237,0.3863,2521.1,2521.0,0.39668]
[1725051711430,0.3863,2521.1,2520.8,0.99772983]
[1725051711431,0.00595983,2521.3,2521.2,0.39665]
[1725051711831,0.00595983,2521.3,2521.1,0.39666]
[1725051712031,0.99166,2521.2,2520.8,0.40266983]
[1725051712232,0.3671,2521.1,2520.8,0.40266983]
[1725051712432,0.3967,2520.9,2520.8,0.00595983]
[1725051712843,4.3639,2520.9,2520.8,0.00595983]
[1725051713231,5.35565,2520.9,2520.8,0.00595983]
[1725051713436,4.3639,2520.9,2520.8,0.00595983]
[1725051714835,6.3474,2520.9,2520.8,0.00595983]
[1725051715030,6.3474,2520.9,2520.3,0.75508]
[1725051715031,0.39678,2520.4,2520.3,0.75508]
[1725051715233,0.39678,2520.4,2520.3,0.39678]
[1725051715433,0.3968,2520.3,2520.2,0.3968]
[1725051715636,0.39679,2520.4,2520.3,0.39679]
[1725051716338,0.76627,2520.5,2520.4,0.39678]
[1725051716736,4.73347,2520.5,2520.4,0.39678]
[1725051717040,0.39678,2520.4,2520.3,0.39678]
[1725051717238,0.3695,2520.5,2520.4,0.39678]
[1725051717943,0.39671,2520.9,2520.8,0.39671]
[1725051718235,0.3863,2521.0,2520.9,0.3967]
[1725051718635,3.97157,2521.1,2521.0,0.39668]
[1725051719028,0.39669,2521.0,2520.9,0.39669]
[1725051719229,3.97158,2521.1,2521.0,0.39668]
[1725051719840,0.3671,2521.1,2521.0,0.39668]
[1725051720229,0.3863,2521.2,2521.1,0.39667]
[1725051721544,0.78295,2521.2,2521.1,0.39667]
[1725051722135,0.3863,2521.2,2521.1,0.39667]
[1725051722435,0.78295,2521.2,2521.1,0.39667]
[1725051723135,0.3863,2521.2,2521.1,0.39667]
[1725051723836,0.78295,2521.2,2521.1,0.39667]
[1725051725838,0.00595983,2521.3,2521.2,0.39665]
[1725051726442,4.36899983,2521.3,2521.2,0.39665]
[1725051726641,0.39666,2521.2,2521.1,0.39666]
[1725051726938,0.39668,2521.1,2521.0,0.39667]
[1725051727347,0.39676,2520.6,2520.5,0.39674]
[1725051727540,0.39674,2520.7,2520.6,0.39673]
[1725051728651,0.39676,2520.6,2520.5,0.39675]
[1725051729144,0.39676,2520.6,2520.3,3.60458]
[1725051729145,0.39678,2520.4,2520.3,3.60458]
[1725051730349,0.39681,2520.3,2520.2,0.3968]
[1725051730545,0.39681,2520.2,2520.1,0.40277983]
[1725051731440,4.36481,2520.2,2520.1,0.00595983]
[1725051731640,3.968,2520.2,2520.1,0.40277983]
[1725051731852,4.36481,2520.2,2520.1,0.40277983]
[1725051732038,0.3968,2520.3,2520.2,0.3968]
[1725051732341,4.3648,2520.3,2520.2,0.3968]
[1725051732938,0.39681,2520.2,2520.1,0.40276983]
[1725051733341,4.36481,2520.2,2520.1,0.40276983]
[1725051733946,11.35684,2520.2,2520.1,0.00595983]
[1725051734152,11.35684,2520.2,2519.6,3.60469]
[1725051734153,0.39689,2519.7,2519.6,3.60469]
[1725051734341,0.39689,2519.7,2519.2,4.526]
[1725051734342,7.62991,2520.0,2519.2,4.32369172]
[1725051734543,0.39693,2519.5,2519.4,0.39693]
[1725051735149,0.39694,2519.4,2519.3,0.39694]
[1725051735645,0.39693,2519.5,2519.4,0.39693]
[1725051735853,0.99228,2519.6,2519.2,3.96440983]
[1725051736066,0.39695,2519.3,2519.2,0.00595983]
[1725051736242,1.38933,2519.3,2519.2,0.00595983]
[1725051736551,5.35893,2519.3,2519.2,0.00595983]
[1725051737553,8.78893,2519.3,2519.2,0.00595983]
[1725051738151,4.36655,2519.3,2519.2,0.00595983]
[1725051738357,3.9696,2519.3,2519.2,0.40292983]
[1725051739947,4.36655,2519.3,2519.2,0.40292983]
[1725051740253,4.36655,2519.3,2519.2,0.00595983]
[1725051741252,4.36655,2519.3,2519.2,0.40292983]
[1725051741549,4.36655,2519.3,2519.2,0.00595983]
[1725051741750,5.35893,2519.3,2519.2,0.00595983]
[1725051743952,4.36655,2519.3,2519.2,0.00595983]
[1725051745054,5.35893,2519.3,2519.2,0.00595983]
[1725051747456,6.35131,2519.3,2519.2,0.00595983]
[1725051747947,20.31142415,2519.3,2519.2,0.00595983]
[1725051748146,0.39706,2518.7,2518.6,0.39705]
[1725051749849,0.37,2518.8,2518.7,0.39705]
[1725051750062,0.39703,2518.8,2518.7,0.39705]
[1725051751457,0.39703,2518.8,2518.5,3.2078]
[1725051751458,0.39706,2518.7,2518.6,0.39705]
[1725051751664,0.39706,2518.7,2518.5,3.60487]
[1725051751665,0.39706,2518.6,2518.5,3.60487]
[1725051751852,0.39706,2518.6,2518.5,0.39707]
[1725051753953,0.39708,2518.5,2518.4,0.40303983]
[1725051754560,1.38978,2518.5,2518.4,0.00595983]
[1725051754756,2.38248,2518.5,2518.4,0.00595983]
[1725051756358,9.78288,2518.5,2518.4,0.00595983]
[1725051757454,0.39716,2518.0,2517.9,0.353]
[1725051758062,0.39716,2518.0,2517.9,0.75017]
[1725051758372,0.39716,2518.0,2517.9,0.353]
[1725051759571,0.39716,2518.0,2517.8,0.39717]
[1725051759572,0.39717,2517.9,2517.8,0.39717]
[1725051759771,0.39719,2517.8,2517.7,0.00595983]
[1725051759968,0.39719,2517.8,2517.7,0.40315983]
[1725051761372,0.39718,2517.9,2517.8,0.39719]
[1725051761959,0.39719,2517.8,2517.7,0.40314983]
[1725051766071,0.39719,2517.9,2517.8,0.39718]
[1725051766272,0.39719,2517.8,2517.7,0.40315983]
[1725051767161,0.39719,2517.8,2517.7,0.00595983]
[1725051767666,0.77479,2517.8,2517.7,0.00595983]
[1725051768069,5.73976,2517.8,2517.7,0.00595983]
[1725051768274,10.54943,2517.8,2517.3,3.5892]
[1725051768468,1.39038,2517.4,2517.3,3.2078]
[1725051768666,4.82108,2517.4,2517.3,3.2078]
[1725051768871,0.39732,2517.0,2516.8,0.3588]
[1725051769073,0.39732,2517.0,2516.9,0.39733]
[1725051769375,0.39731,2517.1,2517.0,0.39731]
[1725051769762,0.77629,2517.2,2517.0,0.39731]
[1725051769962,0.3973,2517.1,2517.0,0.39731]
[1725051770166,0.39731,2517.0,2516.8,0.3588]
[1725051770367,0.39731,2517.0,2516.8,0.75614]
[1725051770571,0.379,2517.2,2516.8,0.75614]
[1725051770771,0.39733,2517.0,2516.8,0.75614]
[1725051771371,0.39733,2516.9,2516.8,0.75614]
[1725051771775,0.39732,2517.0,2516.8,0.75614]
[1725051771973,0.39731,2517.1,2516.9,0.39732]
[1725051773172,0.39731,2517.0,2516.9,0.39732]
[1725051774675,3.2078,2517.3,2517.2,0.39728]
[1725051774873,0.78102,2517.7,2517.1,0.99323]
[1725051775070,0.39722,2517.6,2517.5,0.39722]
[1725051775776,4.36922,2517.6,2517.5,0.39722]
[1725051776878,0.39724,2517.5,2517.4,0.39724]
[1725051778584,0.39726,2517.4,2517.3,0.39725]
[1725051779684,0.39728,2517.3,2517.2,0.39727]
[1725051779880,0.3973,2517.2,2517.1,0.39729]
[1725051781780,0.39728,2517.3,2517.2,0.39727]
[1725051781986,0.3838,2517.7,2517.6,0.39722]
[1725051782189,3.2078,2517.8,2517.7,0.3972]
[1725051782991,0.39718,2517.9,2517.8,0.39719]
[1725051783989,3.82717,2518.0,2517.9,0.39717]
[1725051784483,7.79837,2518.0,2517.9,0.39717]
[1725051784786,7.79836,2518.0,2517.9,0.39717]
[1725051786597,3.82716,2518.0,2517.9,0.39717]
[1725051786796,7.79836,2518.0,2517.9,0.39717]
[1725051789691,0.39723,2517.7,2516.8,14.2298]
[1725051789887,0.39723,2517.7,2517.0,0.39731]
[1725051789888,3.8273,2517.1,2517.0,0.39731]
[1725051790085,3.43,2517.1,2517.0,0.39731]
[1725051791100,3.82726,2517.4,2517.3,0.39726]
[1725051791396,3.82726,2517.4,2517.2,0.39727]
[1725051791397,0.39727,2517.3,2517.2,0.39727]
[1725051792096,0.39728,2517.2,2517.1,0.39729]
[1725051792487,4.6873396,2517.3,2517.2,0.39728]
[1725051792788,0.39728,2517.3,2517.2,0.39728]
[1725051793192,0.39728,2517.3,2517.1,0.39729]
[1725051793396,4.42314,2517.4,2517.1,0.39729]
[1725051793397,0.39728,2517.2,2517.1,0.39729]
[1725051793589,0.3973,2517.1,2517.0,0.3973]
[1725051794592,3.43,2517.2,2516.8,3.2078]
[1725051794792,0.39738,2516.6,2516.4,0.3875]
[1725051794994,0.39738,2516.6,2516.1,0.3875]
[1725051794995,3.43,2516.3,2516.1,0.3875]
[1725051795302,3.43,2516.3,2515.8,0.3727]
[1725051795303,0.39745,2516.2,2515.8,0.3727]